Workbook

Sheet Daily Meal Planner Setup
J2: DAILY CALORIE TARGET | M2: DAILY FAT GRAM TARGET
B3: MEAL PLANNER SETUP | J3: =BCalories+LCalories+DCalories+SCalories -> 1600 | M3: =BFatGrams+LFatGrams+DFatGrams+SFatGrams -> 50
J4: ENTER TARGET GOALS BY MEAL
B5: This sheet stores information that is used across your meal planner. You can type over the sample data or add new Food Items to customize it to fit your needs. The table of Food Items is linked to a drop down list of choices for each meal in your planner. When you select a food item in a daily meal table, for example if you select scrambled eggs for breakfast on Monday, the Serving, Calories, and Fat will automatically populate. All you need to do is make a selection from the drop down list and enter the number of servings. The Target Goals you enter for your daily calories and fat grams are automatically carried over to the respective meals so you don't need to enter them each time. For example, change the target calories for Breakfast and then switch to the sheet for any meal plan, such as Monday, and you'll see your change appear in cell E16. Also note that your daily Total Calories and Total Fat Grams at the top of each weekly sheet will turn red to help you quickly identify the days you exceed your Daily Calorie and Daily Fat Gram Target goals.
E6: FOOD ITEM | F6: SERVING | G6: CALORIES | H6: FAT | K6: BREAKFAST
E7: asparagus spears | F7: 1/2 cup | G7: 20 | H7: 0.2 | K7: 375 | M7: 20
E8: bacon | F8: slice | G8: 23 | H8: 1.5 | K8: CALORIES | M8: FAT GRAMS
E9: baked potato (no salt) | F9: 1/2 cup | G9: 51 | H9: 0.1
E10: banana | F10: banana | G10: 200 | H10: 0.7 | K10: LUNCH
E11: blueberries | F11: cup | G11: 83 | H11: 0.5 | K11: 450 | M11: 10
E12: butter w/salt | F12: pat | G12: 36 | H12: 4.1 | K12: CALORIES | M12: FAT GRAMS
E13: chicken breast | F13: cup | G13: 231 | H13: 5
E14: coffee (black) | F14: mug | G14: 5 | H14: 0 | K14: DINNER
E15: cooked broccoli | F15: stalk | G15: 98 | H15: 1.1 | K15: 475 | M15: 15
E16: mixed fruit cup | F16: cup | G16: 70 | H16: 0 | K16: CALORIES | M16: FAT GRAMS
E17: orange juice | F17: cup | G17: 112 | H17: 0.5
E18: poached egg | F18: egg | G18: 71 | H18: 5 | K18: SNACKS
E19: popcorn cake | F19: lg cake | G19: 38 | H19: 0.3 | K19: 300 | M19: 5
E20: scrambled eggs | F20: egg | G20: 100 | H20: 7.7 | K20: CALORIES | M20: FAT GRAMS
E21: sushi (pink salmon) | F21: 1/2 fillet | G21: 184 | H21: 5.5
E22: salad (no dressing) | F22: 1 1/2 cups | G22: 33 | H22: 0.1
E23: tuna (light in water) | F23: can | G23: 191 | H23: 1.4
E24: wheat berry toast | F24: slice | G24: 89 | H24: 1.2

Sheet Monday
R2: TOTAL CALORIES | T2: TOTAL FAT GRAMS
B3: MONDAY MEAL PLAN | R3: =DailyCalories -> 1236 | T3: =DailyFatGrams -> 40.15
B6: MEALS AT A GLANCE
B7: BREAKFAST | G7: LUNCH | L7: DINNER | Q7: SNACKS
B8: ITEM | C8: SERV | D8: AMT | E8: CAL | F8: FAT | G8: FOOD ITEM | H8: SERV | I8: AMT | J8: CAL | K8: FAT | L8: FOOD ITEM | M8: SERV | N8: AMT | O8: CAL | P8: FAT | Q8: FOOD ITEM | R8: SERV | S8: AMT | T8: CAL | U8: FAT
B9: scrambled eggs | C9: 2 | D9: =IFERROR(VLOOKUP(B9,FoodItemsTable[],2,FALSE),"") -> egg | E9: =IFERROR(VLOOKUP(B9,FoodItemsTable[],3,FALSE)*MondayBreakfastTable[[#This Row],[SERV]],"") -> 200 | F9: =IFERROR(VLOOKUP(B9,FoodItemsTable[],4,FALSE)*MondayBreakfastTable[[#This Row],[SERV]],"") -> 15.4 | G9: blueberries | H9: 2 | I9: =IFERROR(VLOOKUP(G9,FoodItemsTable[],2,FALSE),"") -> cup | J9: =IFERROR(VLOOKUP(G9,FoodItemsTable[],3,FALSE)*MondayLunchTable[[#This Row],[SERV]],"") -> 166 | K9: =IFERROR(VLOOKUP(G9,FoodItemsTable[],4,FALSE)*MondayLunchTable[[#This Row],[SERV]],"") -> 1 | L9: cooked broccoli | M9: 1 | N9: =IFERROR(VLOOKUP(L9,FoodItemsTable[],2,FALSE),"") -> stalk | O9: =IFERROR(VLOOKUP(L9,FoodItemsTable[],3,FALSE)*MondayDinnerTable[[#This Row],[SERV]],"") -> 98 | P9: =IFERROR(VLOOKUP(L9,FoodItemsTable[],4,FALSE)*MondayDinnerTable[[#This Row],[SERV]],"") -> 1.1 | Q9: blueberries | R9: 1 | S9: =IFERROR(VLOOKUP(Q9,FoodItemsTable[],2,FALSE),"") -> cup | T9: =IFERROR(VLOOKUP(Q9,FoodItemsTable[],3,FALSE)*MondaySnacksTable[[#This Row],[SERV]],"") -> 83 | U9: =IFERROR(VLOOKUP(Q9,FoodItemsTable[],4,FALSE)*MondaySnacksTable[[#This Row],[SERV]],"") -> 0.5
B10: wheat berry toast | C10: 1 | D10: =IFERROR(VLOOKUP(B10,FoodItemsTable[],2,FALSE),"") -> slice | E10: =IFERROR(VLOOKUP(B10,FoodItemsTable[],3,FALSE)*MondayBreakfastTable[[#This Row],[SERV]],"") -> 89 | F10: =IFERROR(VLOOKUP(B10,FoodItemsTable[],4,FALSE)*MondayBreakfastTable[[#This Row],[SERV]],"") -> 1.2 | G10: popcorn cake | H10: 1 | I10: =IFERROR(VLOOKUP(G10,FoodItemsTable[],2,FALSE),"") -> lg cake | J10: =IFERROR(VLOOKUP(G10,FoodItemsTable[],3,FALSE)*MondayLunchTable[[#This Row],[SERV]],"") -> 38 | K10: =IFERROR(VLOOKUP(G10,FoodItemsTable[],4,FALSE)*MondayLunchTable[[#This Row],[SERV]],"") -> 0.3 | L10: baked potato (no salt) | M10: 1 | N10: =IFERROR(VLOOKUP(L10,FoodItemsTable[],2,FALSE),"") -> 1/2 cup | O10: =IFERROR(VLOOKUP(L10,FoodItemsTable[],3,FALSE)*MondayDinnerTable[[#This Row],[SERV]],"") -> 51 | P10: =IFERROR(VLOOKUP(L10,FoodItemsTable[],4,FALSE)*MondayDinnerTable[[#This Row],[SERV]],"") -> 0.1 | Q10: mixed fruit cup | R10: 1 | S10: =IFERROR(VLOOKUP(Q10,FoodItemsTable[],2,FALSE),"") -> cup | T10: =IFERROR(VLOOKUP(Q10,FoodItemsTable[],3,FALSE)*MondaySnacksTable[[#This Row],[SERV]],"") -> 70 | U10: =IFERROR(VLOOKUP(Q10,FoodItemsTable[],4,FALSE)*MondaySnacksTable[[#This Row],[SERV]],"") -> 0
B11: orange juice | C11: 0.5 | D11: =IFERROR(VLOOKUP(B11,FoodItemsTable[],2,FALSE),"") -> cup | E11: =IFERROR(VLOOKUP(B11,FoodItemsTable[],3,FALSE)*MondayBreakfastTable[[#This Row],[SERV]],"") -> 56 | F11: =IFERROR(VLOOKUP(B11,FoodItemsTable[],4,FALSE)*MondayBreakfastTable[[#This Row],[SERV]],"") -> 0.25 | I11: =IFERROR(VLOOKUP(G11,FoodItemsTable[],2,FALSE),"") ->  | J11: =IFERROR(VLOOKUP(G11,FoodItemsTable[],3,FALSE)*MondayLunchTable[[#This Row],[SERV]],"") ->  | K11: =IFERROR(VLOOKUP(G11,FoodItemsTable[],4,FALSE)*MondayLunchTable[[#This Row],[SERV]],"") ->  | L11: butter w/salt | M11: 2 | N11: =IFERROR(VLOOKUP(L11,FoodItemsTable[],2,FALSE),"") -> pat | O11: =IFERROR(VLOOKUP(L11,FoodItemsTable[],3,FALSE)*MondayDinnerTable[[#This Row],[SERV]],"") -> 72 | P11: =IFERROR(VLOOKUP(L11,FoodItemsTable[],4,FALSE)*MondayDinnerTable[[#This Row],[SERV]],"") -> 8.2 | S11: =IFERROR(VLOOKUP(Q11,FoodItemsTable[],2,FALSE),"") ->  | T11: =IFERROR(VLOOKUP(Q11,FoodItemsTable[],3,FALSE)*MondaySnacksTable[[#This Row],[SERV]],"") ->  | U11: =IFERROR(VLOOKUP(Q11,FoodItemsTable[],4,FALSE)*MondaySnacksTable[[#This Row],[SERV]],"") -> 
B12: butter w/salt | C12: 1 | D12: =IFERROR(VLOOKUP(B12,FoodItemsTable[],2,FALSE),"") -> pat | E12: =IFERROR(VLOOKUP(B12,FoodItemsTable[],3,FALSE)*MondayBreakfastTable[[#This Row],[SERV]],"") -> 36 | F12: =IFERROR(VLOOKUP(B12,FoodItemsTable[],4,FALSE)*MondayBreakfastTable[[#This Row],[SERV]],"") -> 4.1 | I12: =IFERROR(VLOOKUP(G12,FoodItemsTable[],2,FALSE),"") ->  | J12: =IFERROR(VLOOKUP(G12,FoodItemsTable[],3,FALSE)*MondayLunchTable[[#This Row],[SERV]],"") ->  | K12: =IFERROR(VLOOKUP(G12,FoodItemsTable[],4,FALSE)*MondayLunchTable[[#This Row],[SERV]],"") ->  | L12: chicken breast | M12: 1 | N12: =IFERROR(VLOOKUP(L12,FoodItemsTable[],2,FALSE),"") -> cup | O12: =IFERROR(VLOOKUP(L12,FoodItemsTable[],3,FALSE)*MondayDinnerTable[[#This Row],[SERV]],"") -> 231 | P12: =IFERROR(VLOOKUP(L12,FoodItemsTable[],4,FALSE)*MondayDinnerTable[[#This Row],[SERV]],"") -> 5 | S12: =IFERROR(VLOOKUP(Q12,FoodItemsTable[],2,FALSE),"") ->  | T12: =IFERROR(VLOOKUP(Q12,FoodItemsTable[],3,FALSE)*MondaySnacksTable[[#This Row],[SERV]],"") ->  | U12: =IFERROR(VLOOKUP(Q12,FoodItemsTable[],4,FALSE)*MondaySnacksTable[[#This Row],[SERV]],"") -> 
B13: bacon | C13: 2 | D13: =IFERROR(VLOOKUP(B13,FoodItemsTable[],2,FALSE),"") -> slice | E13: =IFERROR(VLOOKUP(B13,FoodItemsTable[],3,FALSE)*MondayBreakfastTable[[#This Row],[SERV]],"") -> 46 | F13: =IFERROR(VLOOKUP(B13,FoodItemsTable[],4,FALSE)*MondayBreakfastTable[[#This Row],[SERV]],"") -> 3 | I13: =IFERROR(VLOOKUP(G13,FoodItemsTable[],2,FALSE),"") ->  | J13: =IFERROR(VLOOKUP(G13,FoodItemsTable[],3,FALSE)*MondayLunchTable[[#This Row],[SERV]],"") ->  | K13: =IFERROR(VLOOKUP(G13,FoodItemsTable[],4,FALSE)*MondayLunchTable[[#This Row],[SERV]],"") ->  | N13: =IFERROR(VLOOKUP(L13,FoodItemsTable[],2,FALSE),"") ->  | O13: =IFERROR(VLOOKUP(L13,FoodItemsTable[],3,FALSE)*MondayDinnerTable[[#This Row],[SERV]],"") ->  | P13: =IFERROR(VLOOKUP(L13,FoodItemsTable[],4,FALSE)*MondayDinnerTable[[#This Row],[SERV]],"") ->  | S13: =IFERROR(VLOOKUP(Q13,FoodItemsTable[],2,FALSE),"") ->  | T13: =IFERROR(VLOOKUP(Q13,FoodItemsTable[],3,FALSE)*MondaySnacksTable[[#This Row],[SERV]],"") ->  | U13: =IFERROR(VLOOKUP(Q13,FoodItemsTable[],4,FALSE)*MondaySnacksTable[[#This Row],[SERV]],"") -> 
D14: =IFERROR(VLOOKUP(B14,FoodItemsTable[],2,FALSE),"") ->  | E14: =IFERROR(VLOOKUP(B14,FoodItemsTable[],3,FALSE)*MondayBreakfastTable[[#This Row],[SERV]],"") ->  | F14: =IFERROR(VLOOKUP(B14,FoodItemsTable[],4,FALSE)*MondayBreakfastTable[[#This Row],[SERV]],"") ->  | I14: =IFERROR(VLOOKUP(G14,FoodItemsTable[],2,FALSE),"") ->  | J14: =IFERROR(VLOOKUP(G14,FoodItemsTable[],3,FALSE)*MondayLunchTable[[#This Row],[SERV]],"") ->  | K14: =IFERROR(VLOOKUP(G14,FoodItemsTable[],4,FALSE)*MondayLunchTable[[#This Row],[SERV]],"") ->  | N14: =IFERROR(VLOOKUP(L14,FoodItemsTable[],2,FALSE),"") ->  | O14: =IFERROR(VLOOKUP(L14,FoodItemsTable[],3,FALSE)*MondayDinnerTable[[#This Row],[SERV]],"") ->  | P14: =IFERROR(VLOOKUP(L14,FoodItemsTable[],4,FALSE)*MondayDinnerTable[[#This Row],[SERV]],"") ->  | S14: =IFERROR(VLOOKUP(Q14,FoodItemsTable[],2,FALSE),"") ->  | T14: =IFERROR(VLOOKUP(Q14,FoodItemsTable[],3,FALSE)*MondaySnacksTable[[#This Row],[SERV]],"") ->  | U14: =IFERROR(VLOOKUP(Q14,FoodItemsTable[],4,FALSE)*MondaySnacksTable[[#This Row],[SERV]],"") -> 
B15: BREAKFAST TOTAL | E15: =SUBTOTAL(109,MondayBreakfastTable[CAL]) -> 427 | F15: =SUBTOTAL(109,MondayBreakfastTable[FAT]) -> 23.95 | G15: LUNCH TOTAL | J15: =SUBTOTAL(109,MondayLunchTable[CAL]) -> 204 | K15: =SUBTOTAL(109,MondayLunchTable[FAT]) -> 1.30 | L15: DINNER TOTAL | O15: =SUBTOTAL(109,MondayDinnerTable[CAL]) -> 452 | P15: =SUBTOTAL(109,MondayDinnerTable[FAT]) -> 14.40 | Q15: SNACKS TOTAL | T15: =SUBTOTAL(109,MondaySnacksTable[CAL]) -> 153 | U15: =SUBTOTAL(109,MondaySnacksTable[FAT]) -> 0.50
B16: BREAKFAST TARGET | E16: =BCalories -> 375 | F16: =BFatGrams -> 20.00 | G16: LUNCH TARGET | J16: =LCalories -> 450 | K16: =LFatGrams -> 10.00 | L16: DINNER TARGET | O16: =DCalories -> 475 | P16: =DFatGrams -> 15.00 | Q16: SNACKS TARGET | T16: =SCalories -> 300 | U16: =SFatGrams -> 5.00

Sheet Tuesday
R2: TOTAL CALORIES | T2: TOTAL FAT GRAMS
B3: TUESDAY MEAL PLAN | R3: =DailyCalories -> 1644.5 | T3: =DailyFatGrams -> 43.7
B6: MEALS AT A GLANCE
B7: BREAKFAST | G7: LUNCH | L7: DINNER | Q7: SNACKS
B8: ITEM | C8: SERV | D8: AMT | E8: CAL | F8: FAT | G8: FOOD ITEM | H8: SERV | I8: AMT | J8: CAL | K8: FAT | L8: FOOD ITEM | M8: SERV | N8: AMT | O8: CAL | P8: FAT | Q8: FOOD ITEM | R8: SERV | S8: AMT | T8: CAL | U8: FAT
B9: bacon | C9: 3 | D9: =IFERROR(VLOOKUP(B9,FoodItemsTable[],2,FALSE),"") -> slice | E9: =IFERROR(VLOOKUP(B9,FoodItemsTable[],3,FALSE)*TuesdayBreakfastTable[[#This Row],[SERV]],"") -> 69 | F9: =IFERROR(VLOOKUP(B9,FoodItemsTable[],4,FALSE)*TuesdayBreakfastTable[[#This Row],[SERV]],"") -> 4.5 | G9: mixed fruit cup | H9: 1 | I9: =IFERROR(VLOOKUP(G9,FoodItemsTable[],2,FALSE),"") -> cup | J9: =IFERROR(VLOOKUP(G9,FoodItemsTable[],3,FALSE)*TuesdayLunchTable[[#This Row],[SERV]],"") -> 70 | K9: =IFERROR(VLOOKUP(G9,FoodItemsTable[],4,FALSE)*TuesdayLunchTable[[#This Row],[SERV]],"") -> 0 | L9: chicken breast | M9: 2 | N9: =IFERROR(VLOOKUP(L9,FoodItemsTable[],2,FALSE),"") -> cup | O9: =IFERROR(VLOOKUP(L9,FoodItemsTable[],3,FALSE)*TuesdayDinnerTable[[#This Row],[SERV]],"") -> 462 | P9: =IFERROR(VLOOKUP(L9,FoodItemsTable[],4,FALSE)*TuesdayDinnerTable[[#This Row],[SERV]],"") -> 10 | Q9: popcorn cake | R9: 1 | S9: =IFERROR(VLOOKUP(Q9,FoodItemsTable[],2,FALSE),"") -> lg cake | T9: =IFERROR(VLOOKUP(Q9,FoodItemsTable[],3,FALSE)*TuesdaySnacksTable[[#This Row],[SERV]],"") -> 38 | U9: =IFERROR(VLOOKUP(Q9,FoodItemsTable[],4,FALSE)*TuesdaySnacksTable[[#This Row],[SERV]],"") -> 0.3
B10: scrambled eggs | C10: 3 | D10: =IFERROR(VLOOKUP(B10,FoodItemsTable[],2,FALSE),"") -> egg | E10: =IFERROR(VLOOKUP(B10,FoodItemsTable[],3,FALSE)*TuesdayBreakfastTable[[#This Row],[SERV]],"") -> 300 | F10: =IFERROR(VLOOKUP(B10,FoodItemsTable[],4,FALSE)*TuesdayBreakfastTable[[#This Row],[SERV]],"") -> 23.1 | G10: tuna (light in water) | H10: 0.5 | I10: =IFERROR(VLOOKUP(G10,FoodItemsTable[],2,FALSE),"") -> can | J10: =IFERROR(VLOOKUP(G10,FoodItemsTable[],3,FALSE)*TuesdayLunchTable[[#This Row],[SERV]],"") -> 95.5 | K10: =IFERROR(VLOOKUP(G10,FoodItemsTable[],4,FALSE)*TuesdayLunchTable[[#This Row],[SERV]],"") -> 0.7 | L10: cooked broccoli | M10: 1 | N10: =IFERROR(VLOOKUP(L10,FoodItemsTable[],2,FALSE),"") -> stalk | O10: =IFERROR(VLOOKUP(L10,FoodItemsTable[],3,FALSE)*TuesdayDinnerTable[[#This Row],[SERV]],"") -> 98 | P10: =IFERROR(VLOOKUP(L10,FoodItemsTable[],4,FALSE)*TuesdayDinnerTable[[#This Row],[SERV]],"") -> 1.1 | Q10: blueberries | R10: 2 | S10: =IFERROR(VLOOKUP(Q10,FoodItemsTable[],2,FALSE),"") -> cup | T10: =IFERROR(VLOOKUP(Q10,FoodItemsTable[],3,FALSE)*TuesdaySnacksTable[[#This Row],[SERV]],"") -> 166 | U10: =IFERROR(VLOOKUP(Q10,FoodItemsTable[],4,FALSE)*TuesdaySnacksTable[[#This Row],[SERV]],"") -> 1
B11: wheat berry toast | C11: 2 | D11: =IFERROR(VLOOKUP(B11,FoodItemsTable[],2,FALSE),"") -> slice | E11: =IFERROR(VLOOKUP(B11,FoodItemsTable[],3,FALSE)*TuesdayBreakfastTable[[#This Row],[SERV]],"") -> 178 | F11: =IFERROR(VLOOKUP(B11,FoodItemsTable[],4,FALSE)*TuesdayBreakfastTable[[#This Row],[SERV]],"") -> 2.4 | I11: =IFERROR(VLOOKUP(G11,FoodItemsTable[],2,FALSE),"") ->  | J11: =IFERROR(VLOOKUP(G11,FoodItemsTable[],3,FALSE)*TuesdayLunchTable[[#This Row],[SERV]],"") ->  | K11: =IFERROR(VLOOKUP(G11,FoodItemsTable[],4,FALSE)*TuesdayLunchTable[[#This Row],[SERV]],"") ->  | L11: baked potato (no salt) | M11: 1 | N11: =IFERROR(VLOOKUP(L11,FoodItemsTable[],2,FALSE),"") -> 1/2 cup | O11: =IFERROR(VLOOKUP(L11,FoodItemsTable[],3,FALSE)*TuesdayDinnerTable[[#This Row],[SERV]],"") -> 51 | P11: =IFERROR(VLOOKUP(L11,FoodItemsTable[],4,FALSE)*TuesdayDinnerTable[[#This Row],[SERV]],"") -> 0.1 | S11: =IFERROR(VLOOKUP(Q11,FoodItemsTable[],2,FALSE),"") ->  | T11: =IFERROR(VLOOKUP(Q11,FoodItemsTable[],3,FALSE)*TuesdaySnacksTable[[#This Row],[SERV]],"") ->  | U11: =IFERROR(VLOOKUP(Q11,FoodItemsTable[],4,FALSE)*TuesdaySnacksTable[[#This Row],[SERV]],"") -> 
B12: orange juice | C12: 1 | D12: =IFERROR(VLOOKUP(B12,FoodItemsTable[],2,FALSE),"") -> cup | E12: =IFERROR(VLOOKUP(B12,FoodItemsTable[],3,FALSE)*TuesdayBreakfastTable[[#This Row],[SERV]],"") -> 112 | F12: =IFERROR(VLOOKUP(B12,FoodItemsTable[],4,FALSE)*TuesdayBreakfastTable[[#This Row],[SERV]],"") -> 0.5 | I12: =IFERROR(VLOOKUP(G12,FoodItemsTable[],2,FALSE),"") ->  | J12: =IFERROR(VLOOKUP(G12,FoodItemsTable[],3,FALSE)*TuesdayLunchTable[[#This Row],[SERV]],"") ->  | K12: =IFERROR(VLOOKUP(G12,FoodItemsTable[],4,FALSE)*TuesdayLunchTable[[#This Row],[SERV]],"") ->  | N12: =IFERROR(VLOOKUP(L12,FoodItemsTable[],2,FALSE),"") ->  | O12: =IFERROR(VLOOKUP(L12,FoodItemsTable[],3,FALSE)*TuesdayDinnerTable[[#This Row],[SERV]],"") ->  | P12: =IFERROR(VLOOKUP(L12,FoodItemsTable[],4,FALSE)*TuesdayDinnerTable[[#This Row],[SERV]],"") ->  | S12: =IFERROR(VLOOKUP(Q12,FoodItemsTable[],2,FALSE),"") ->  | T12: =IFERROR(VLOOKUP(Q12,FoodItemsTable[],3,FALSE)*TuesdaySnacksTable[[#This Row],[SERV]],"") ->  | U12: =IFERROR(VLOOKUP(Q12,FoodItemsTable[],4,FALSE)*TuesdaySnacksTable[[#This Row],[SERV]],"") -> 
B13: coffee (black) | C13: 1 | D13: =IFERROR(VLOOKUP(B13,FoodItemsTable[],2,FALSE),"") -> mug | E13: =IFERROR(VLOOKUP(B13,FoodItemsTable[],3,FALSE)*TuesdayBreakfastTable[[#This Row],[SERV]],"") -> 5 | F13: =IFERROR(VLOOKUP(B13,FoodItemsTable[],4,FALSE)*TuesdayBreakfastTable[[#This Row],[SERV]],"") -> 0 | I13: =IFERROR(VLOOKUP(G13,FoodItemsTable[],2,FALSE),"") ->  | J13: =IFERROR(VLOOKUP(G13,FoodItemsTable[],3,FALSE)*TuesdayLunchTable[[#This Row],[SERV]],"") ->  | K13: =IFERROR(VLOOKUP(G13,FoodItemsTable[],4,FALSE)*TuesdayLunchTable[[#This Row],[SERV]],"") ->  | N13: =IFERROR(VLOOKUP(L13,FoodItemsTable[],2,FALSE),"") ->  | O13: =IFERROR(VLOOKUP(L13,FoodItemsTable[],3,FALSE)*TuesdayDinnerTable[[#This Row],[SERV]],"") ->  | P13: =IFERROR(VLOOKUP(L13,FoodItemsTable[],4,FALSE)*TuesdayDinnerTable[[#This Row],[SERV]],"") ->  | S13: =IFERROR(VLOOKUP(Q13,FoodItemsTable[],2,FALSE),"") ->  | T13: =IFERROR(VLOOKUP(Q13,FoodItemsTable[],3,FALSE)*TuesdaySnacksTable[[#This Row],[SERV]],"") ->  | U13: =IFERROR(VLOOKUP(Q13,FoodItemsTable[],4,FALSE)*TuesdaySnacksTable[[#This Row],[SERV]],"") -> 
D14: =IFERROR(VLOOKUP(B14,FoodItemsTable[],2,FALSE),"") ->  | E14: =IFERROR(VLOOKUP(B14,FoodItemsTable[],3,FALSE)*TuesdayBreakfastTable[[#This Row],[SERV]],"") ->  | F14: =IFERROR(VLOOKUP(B14,FoodItemsTable[],4,FALSE)*TuesdayBreakfastTable[[#This Row],[SERV]],"") ->  | I14: =IFERROR(VLOOKUP(G14,FoodItemsTable[],2,FALSE),"") ->  | J14: =IFERROR(VLOOKUP(G14,FoodItemsTable[],3,FALSE)*TuesdayLunchTable[[#This Row],[SERV]],"") ->  | K14: =IFERROR(VLOOKUP(G14,FoodItemsTable[],4,FALSE)*TuesdayLunchTable[[#This Row],[SERV]],"") ->  | N14: =IFERROR(VLOOKUP(L14,FoodItemsTable[],2,FALSE),"") ->  | O14: =IFERROR(VLOOKUP(L14,FoodItemsTable[],3,FALSE)*TuesdayDinnerTable[[#This Row],[SERV]],"") ->  | P14: =IFERROR(VLOOKUP(L14,FoodItemsTable[],4,FALSE)*TuesdayDinnerTable[[#This Row],[SERV]],"") ->  | S14: =IFERROR(VLOOKUP(Q14,FoodItemsTable[],2,FALSE),"") ->  | T14: =IFERROR(VLOOKUP(Q14,FoodItemsTable[],3,FALSE)*TuesdaySnacksTable[[#This Row],[SERV]],"") ->  | U14: =IFERROR(VLOOKUP(Q14,FoodItemsTable[],4,FALSE)*TuesdaySnacksTable[[#This Row],[SERV]],"") -> 
B15: BREAKFAST TOTAL | E15: =SUBTOTAL(109,TuesdayBreakfastTable[CAL]) -> 664 | F15: =SUBTOTAL(109,TuesdayBreakfastTable[FAT]) -> 30.50 | G15: LUNCH TOTAL | J15: =SUBTOTAL(109,TuesdayLunchTable[CAL]) -> 165.5 | K15: =SUBTOTAL(109,TuesdayLunchTable[FAT]) -> 0.70 | L15: DINNER TOTAL | O15: =SUBTOTAL(109,TuesdayDinnerTable[CAL]) -> 611 | P15: =SUBTOTAL(109,TuesdayDinnerTable[FAT]) -> 11.20 | Q15: SNACKS TOTAL | T15: =SUBTOTAL(109,TuesdaySnacksTable[CAL]) -> 204 | U15: =SUBTOTAL(109,TuesdaySnacksTable[FAT]) -> 1.30
B16: BREAKFAST TARGET | E16: =BCalories -> 375 | F16: =BFatGrams -> 20.00 | G16: LUNCH TARGET | J16: =LCalories -> 450 | K16: =LFatGrams -> 10.00 | L16: DINNER TARGET | O16: =DCalories -> 475 | P16: =DFatGrams -> 15.00 | Q16: SNACKS TARGET | T16: =SCalories -> 300 | U16: =SFatGrams -> 5.00

Sheet Wednesday
R2: TOTAL CALORIES | T2: TOTAL FAT GRAMS
B3: WEDNESDAY MEAL PLAN | R3: =DailyCalories -> 0 | T3: =DailyFatGrams -> 0
B6: MEALS AT A GLANCE
B7: BREAKFAST | G7: LUNCH | L7: DINNER | Q7: SNACKS
B8: ITEM | C8: SERV | D8: AMT | E8: CAL | F8: FAT | G8: FOOD ITEM | H8: SERV | I8: AMT | J8: CAL | K8: FAT | L8: FOOD ITEM | M8: SERV | N8: AMT | O8: CAL | P8: FAT | Q8: FOOD ITEM | R8: SERV | S8: AMT | T8: CAL | U8: FAT
D9: =IFERROR(VLOOKUP(B9,FoodItemsTable[],2,FALSE),"") ->  | E9: =IFERROR(VLOOKUP(B9,FoodItemsTable[],3,FALSE)*WednesdayBreakfastTable[[#This Row],[SERV]],"") ->  | F9: =IFERROR(VLOOKUP(B9,FoodItemsTable[],4,FALSE)*WednesdayBreakfastTable[[#This Row],[SERV]],"") ->  | I9: =IFERROR(VLOOKUP(G9,FoodItemsTable[],2,FALSE),"") ->  | J9: =IFERROR(VLOOKUP(G9,FoodItemsTable[],3,FALSE)*WednesdayLunchTable[[#This Row],[SERV]],"") ->  | K9: =IFERROR(VLOOKUP(G9,FoodItemsTable[],4,FALSE)*WednesdayLunchTable[[#This Row],[SERV]],"") ->  | N9: =IFERROR(VLOOKUP(L9,FoodItemsTable[],2,FALSE),"") ->  | O9: =IFERROR(VLOOKUP(L9,FoodItemsTable[],3,FALSE)*WednesdayDinnerTable[[#This Row],[SERV]],"") ->  | P9: =IFERROR(VLOOKUP(L9,FoodItemsTable[],4,FALSE)*WednesdayDinnerTable[[#This Row],[SERV]],"") ->  | S9: =IFERROR(VLOOKUP(Q9,FoodItemsTable[],2,FALSE),"") ->  | T9: =IFERROR(VLOOKUP(Q9,FoodItemsTable[],3,FALSE)*WednesdaySnacksTable[[#This Row],[SERV]],"") ->  | U9: =IFERROR(VLOOKUP(Q9,FoodItemsTable[],4,FALSE)*WednesdaySnacksTable[[#This Row],[SERV]],"") -> 
D10: =IFERROR(VLOOKUP(B10,FoodItemsTable[],2,FALSE),"") ->  | E10: =IFERROR(VLOOKUP(B10,FoodItemsTable[],3,FALSE)*WednesdayBreakfastTable[[#This Row],[SERV]],"") ->  | F10: =IFERROR(VLOOKUP(B10,FoodItemsTable[],4,FALSE)*WednesdayBreakfastTable[[#This Row],[SERV]],"") ->  | I10: =IFERROR(VLOOKUP(G10,FoodItemsTable[],2,FALSE),"") ->  | J10: =IFERROR(VLOOKUP(G10,FoodItemsTable[],3,FALSE)*WednesdayLunchTable[[#This Row],[SERV]],"") ->  | K10: =IFERROR(VLOOKUP(G10,FoodItemsTable[],4,FALSE)*WednesdayLunchTable[[#This Row],[SERV]],"") ->  | N10: =IFERROR(VLOOKUP(L10,FoodItemsTable[],2,FALSE),"") ->  | O10: =IFERROR(VLOOKUP(L10,FoodItemsTable[],3,FALSE)*WednesdayDinnerTable[[#This Row],[SERV]],"") ->  | P10: =IFERROR(VLOOKUP(L10,FoodItemsTable[],4,FALSE)*WednesdayDinnerTable[[#This Row],[SERV]],"") ->  | S10: =IFERROR(VLOOKUP(Q10,FoodItemsTable[],2,FALSE),"") ->  | T10: =IFERROR(VLOOKUP(Q10,FoodItemsTable[],3,FALSE)*WednesdaySnacksTable[[#This Row],[SERV]],"") ->  | U10: =IFERROR(VLOOKUP(Q10,FoodItemsTable[],4,FALSE)*WednesdaySnacksTable[[#This Row],[SERV]],"") -> 
D11: =IFERROR(VLOOKUP(B11,FoodItemsTable[],2,FALSE),"") ->  | E11: =IFERROR(VLOOKUP(B11,FoodItemsTable[],3,FALSE)*WednesdayBreakfastTable[[#This Row],[SERV]],"") ->  | F11: =IFERROR(VLOOKUP(B11,FoodItemsTable[],4,FALSE)*WednesdayBreakfastTable[[#This Row],[SERV]],"") ->  | I11: =IFERROR(VLOOKUP(G11,FoodItemsTable[],2,FALSE),"") ->  | J11: =IFERROR(VLOOKUP(G11,FoodItemsTable[],3,FALSE)*WednesdayLunchTable[[#This Row],[SERV]],"") ->  | K11: =IFERROR(VLOOKUP(G11,FoodItemsTable[],4,FALSE)*WednesdayLunchTable[[#This Row],[SERV]],"") ->  | N11: =IFERROR(VLOOKUP(L11,FoodItemsTable[],2,FALSE),"") ->  | O11: =IFERROR(VLOOKUP(L11,FoodItemsTable[],3,FALSE)*WednesdayDinnerTable[[#This Row],[SERV]],"") ->  | P11: =IFERROR(VLOOKUP(L11,FoodItemsTable[],4,FALSE)*WednesdayDinnerTable[[#This Row],[SERV]],"") ->  | S11: =IFERROR(VLOOKUP(Q11,FoodItemsTable[],2,FALSE),"") ->  | T11: =IFERROR(VLOOKUP(Q11,FoodItemsTable[],3,FALSE)*WednesdaySnacksTable[[#This Row],[SERV]],"") ->  | U11: =IFERROR(VLOOKUP(Q11,FoodItemsTable[],4,FALSE)*WednesdaySnacksTable[[#This Row],[SERV]],"") -> 
D12: =IFERROR(VLOOKUP(B12,FoodItemsTable[],2,FALSE),"") ->  | E12: =IFERROR(VLOOKUP(B12,FoodItemsTable[],3,FALSE)*WednesdayBreakfastTable[[#This Row],[SERV]],"") ->  | F12: =IFERROR(VLOOKUP(B12,FoodItemsTable[],4,FALSE)*WednesdayBreakfastTable[[#This Row],[SERV]],"") ->  | I12: =IFERROR(VLOOKUP(G12,FoodItemsTable[],2,FALSE),"") ->  | J12: =IFERROR(VLOOKUP(G12,FoodItemsTable[],3,FALSE)*WednesdayLunchTable[[#This Row],[SERV]],"") ->  | K12: =IFERROR(VLOOKUP(G12,FoodItemsTable[],4,FALSE)*WednesdayLunchTable[[#This Row],[SERV]],"") ->  | N12: =IFERROR(VLOOKUP(L12,FoodItemsTable[],2,FALSE),"") ->  | O12: =IFERROR(VLOOKUP(L12,FoodItemsTable[],3,FALSE)*WednesdayDinnerTable[[#This Row],[SERV]],"") ->  | P12: =IFERROR(VLOOKUP(L12,FoodItemsTable[],4,FALSE)*WednesdayDinnerTable[[#This Row],[SERV]],"") ->  | S12: =IFERROR(VLOOKUP(Q12,FoodItemsTable[],2,FALSE),"") ->  | T12: =IFERROR(VLOOKUP(Q12,FoodItemsTable[],3,FALSE)*WednesdaySnacksTable[[#This Row],[SERV]],"") ->  | U12: =IFERROR(VLOOKUP(Q12,FoodItemsTable[],4,FALSE)*WednesdaySnacksTable[[#This Row],[SERV]],"") -> 
D13: =IFERROR(VLOOKUP(B13,FoodItemsTable[],2,FALSE),"") ->  | E13: =IFERROR(VLOOKUP(B13,FoodItemsTable[],3,FALSE)*WednesdayBreakfastTable[[#This Row],[SERV]],"") ->  | F13: =IFERROR(VLOOKUP(B13,FoodItemsTable[],4,FALSE)*WednesdayBreakfastTable[[#This Row],[SERV]],"") ->  | I13: =IFERROR(VLOOKUP(G13,FoodItemsTable[],2,FALSE),"") ->  | J13: =IFERROR(VLOOKUP(G13,FoodItemsTable[],3,FALSE)*WednesdayLunchTable[[#This Row],[SERV]],"") ->  | K13: =IFERROR(VLOOKUP(G13,FoodItemsTable[],4,FALSE)*WednesdayLunchTable[[#This Row],[SERV]],"") ->  | N13: =IFERROR(VLOOKUP(L13,FoodItemsTable[],2,FALSE),"") ->  | O13: =IFERROR(VLOOKUP(L13,FoodItemsTable[],3,FALSE)*WednesdayDinnerTable[[#This Row],[SERV]],"") ->  | P13: =IFERROR(VLOOKUP(L13,FoodItemsTable[],4,FALSE)*WednesdayDinnerTable[[#This Row],[SERV]],"") ->  | S13: =IFERROR(VLOOKUP(Q13,FoodItemsTable[],2,FALSE),"") ->  | T13: =IFERROR(VLOOKUP(Q13,FoodItemsTable[],3,FALSE)*WednesdaySnacksTable[[#This Row],[SERV]],"") ->  | U13: =IFERROR(VLOOKUP(Q13,FoodItemsTable[],4,FALSE)*WednesdaySnacksTable[[#This Row],[SERV]],"") -> 
D14: =IFERROR(VLOOKUP(B14,FoodItemsTable[],2,FALSE),"") ->  | E14: =IFERROR(VLOOKUP(B14,FoodItemsTable[],3,FALSE)*WednesdayBreakfastTable[[#This Row],[SERV]],"") ->  | F14: =IFERROR(VLOOKUP(B14,FoodItemsTable[],4,FALSE)*WednesdayBreakfastTable[[#This Row],[SERV]],"") ->  | I14: =IFERROR(VLOOKUP(G14,FoodItemsTable[],2,FALSE),"") ->  | J14: =IFERROR(VLOOKUP(G14,FoodItemsTable[],3,FALSE)*WednesdayLunchTable[[#This Row],[SERV]],"") ->  | K14: =IFERROR(VLOOKUP(G14,FoodItemsTable[],4,FALSE)*WednesdayLunchTable[[#This Row],[SERV]],"") ->  | N14: =IFERROR(VLOOKUP(L14,FoodItemsTable[],2,FALSE),"") ->  | O14: =IFERROR(VLOOKUP(L14,FoodItemsTable[],3,FALSE)*WednesdayDinnerTable[[#This Row],[SERV]],"") ->  | P14: =IFERROR(VLOOKUP(L14,FoodItemsTable[],4,FALSE)*WednesdayDinnerTable[[#This Row],[SERV]],"") ->  | S14: =IFERROR(VLOOKUP(Q14,FoodItemsTable[],2,FALSE),"") ->  | T14: =IFERROR(VLOOKUP(Q14,FoodItemsTable[],3,FALSE)*WednesdaySnacksTable[[#This Row],[SERV]],"") ->  | U14: =IFERROR(VLOOKUP(Q14,FoodItemsTable[],4,FALSE)*WednesdaySnacksTable[[#This Row],[SERV]],"") -> 
B15: BREAKFAST TOTAL | E15: =SUBTOTAL(109,WednesdayBreakfastTable[CAL]) -> 0 | F15: =SUBTOTAL(109,WednesdayBreakfastTable[FAT]) -> 0.00 | G15: LUNCH TOTAL | J15: =SUBTOTAL(109,WednesdayLunchTable[CAL]) -> 0 | K15: =SUBTOTAL(109,WednesdayLunchTable[FAT]) -> 0.00 | L15: DINNER TOTAL | O15: =SUBTOTAL(109,WednesdayDinnerTable[CAL]) -> 0 | P15: =SUBTOTAL(109,WednesdayDinnerTable[FAT]) -> 0.00 | Q15: SNACKS TOTAL | T15: =SUBTOTAL(109,WednesdaySnacksTable[CAL]) -> 0 | U15: =SUBTOTAL(109,WednesdaySnacksTable[FAT]) -> 0.00
B16: BREAKFAST TARGET | E16: =BCalories -> 375 | F16: =BFatGrams -> 20.00 | G16: LUNCH TARGET | J16: =LCalories -> 450 | K16: =LFatGrams -> 10.00 | L16: DINNER TARGET | O16: =DCalories -> 475 | P16: =DFatGrams -> 15.00 | Q16: SNACKS TARGET | T16: =SCalories -> 300 | U16: =SFatGrams -> 5.00

Sheet Thursday
R2: TOTAL CALORIES | T2: TOTAL FAT GRAMS
B3: THURSDAY MEAL PLAN | R3: =DailyCalories -> 0 | T3: =DailyFatGrams -> 0
B6: MEALS AT A GLANCE
B7: BREAKFAST | G7: LUNCH | L7: DINNER | Q7: SNACKS
B8: ITEM | C8: SERV | D8: AMT | E8: CAL | F8: FAT | G8: FOOD ITEM | H8: SERV | I8: AMT | J8: CAL | K8: FAT | L8: FOOD ITEM | M8: SERV | N8: AMT | O8: CAL | P8: FAT | Q8: FOOD ITEM | R8: SERV | S8: AMT | T8: CAL | U8: FAT
D9: =IFERROR(VLOOKUP(B9,FoodItemsTable[],2,FALSE),"") ->  | E9: =IFERROR(VLOOKUP(B9,FoodItemsTable[],3,FALSE)*ThursdayBreakfastTable[[#This Row],[SERV]],"") ->  | F9: =IFERROR(VLOOKUP(B9,FoodItemsTable[],4,FALSE)*ThursdayBreakfastTable[[#This Row],[SERV]],"") ->  | I9: =IFERROR(VLOOKUP(G9,FoodItemsTable[],2,FALSE),"") ->  | J9: =IFERROR(VLOOKUP(G9,FoodItemsTable[],3,FALSE)*ThursdayLunchTable[[#This Row],[SERV]],"") ->  | K9: =IFERROR(VLOOKUP(G9,FoodItemsTable[],4,FALSE)*ThursdayLunchTable[[#This Row],[SERV]],"") ->  | N9: =IFERROR(VLOOKUP(L9,FoodItemsTable[],2,FALSE),"") ->  | O9: =IFERROR(VLOOKUP(L9,FoodItemsTable[],3,FALSE)*ThursdayDinnerTable[[#This Row],[SERV]],"") ->  | P9: =IFERROR(VLOOKUP(L9,FoodItemsTable[],4,FALSE)*ThursdayDinnerTable[[#This Row],[SERV]],"") ->  | S9: =IFERROR(VLOOKUP(Q9,FoodItemsTable[],2,FALSE),"") ->  | T9: =IFERROR(VLOOKUP(Q9,FoodItemsTable[],3,FALSE)*ThursdaySnacksTable[[#This Row],[SERV]],"") ->  | U9: =IFERROR(VLOOKUP(Q9,FoodItemsTable[],4,FALSE)*ThursdaySnacksTable[[#This Row],[SERV]],"") -> 
D10: =IFERROR(VLOOKUP(B10,FoodItemsTable[],2,FALSE),"") ->  | E10: =IFERROR(VLOOKUP(B10,FoodItemsTable[],3,FALSE)*ThursdayBreakfastTable[[#This Row],[SERV]],"") ->  | F10: =IFERROR(VLOOKUP(B10,FoodItemsTable[],4,FALSE)*ThursdayBreakfastTable[[#This Row],[SERV]],"") ->  | I10: =IFERROR(VLOOKUP(G10,FoodItemsTable[],2,FALSE),"") ->  | J10: =IFERROR(VLOOKUP(G10,FoodItemsTable[],3,FALSE)*ThursdayLunchTable[[#This Row],[SERV]],"") ->  | K10: =IFERROR(VLOOKUP(G10,FoodItemsTable[],4,FALSE)*ThursdayLunchTable[[#This Row],[SERV]],"") ->  | N10: =IFERROR(VLOOKUP(L10,FoodItemsTable[],2,FALSE),"") ->  | O10: =IFERROR(VLOOKUP(L10,FoodItemsTable[],3,FALSE)*ThursdayDinnerTable[[#This Row],[SERV]],"") ->  | P10: =IFERROR(VLOOKUP(L10,FoodItemsTable[],4,FALSE)*ThursdayDinnerTable[[#This Row],[SERV]],"") ->  | S10: =IFERROR(VLOOKUP(Q10,FoodItemsTable[],2,FALSE),"") ->  | T10: =IFERROR(VLOOKUP(Q10,FoodItemsTable[],3,FALSE)*ThursdaySnacksTable[[#This Row],[SERV]],"") ->  | U10: =IFERROR(VLOOKUP(Q10,FoodItemsTable[],4,FALSE)*ThursdaySnacksTable[[#This Row],[SERV]],"") -> 
D11: =IFERROR(VLOOKUP(B11,FoodItemsTable[],2,FALSE),"") ->  | E11: =IFERROR(VLOOKUP(B11,FoodItemsTable[],3,FALSE)*ThursdayBreakfastTable[[#This Row],[SERV]],"") ->  | F11: =IFERROR(VLOOKUP(B11,FoodItemsTable[],4,FALSE)*ThursdayBreakfastTable[[#This Row],[SERV]],"") ->  | I11: =IFERROR(VLOOKUP(G11,FoodItemsTable[],2,FALSE),"") ->  | J11: =IFERROR(VLOOKUP(G11,FoodItemsTable[],3,FALSE)*ThursdayLunchTable[[#This Row],[SERV]],"") ->  | K11: =IFERROR(VLOOKUP(G11,FoodItemsTable[],4,FALSE)*ThursdayLunchTable[[#This Row],[SERV]],"") ->  | N11: =IFERROR(VLOOKUP(L11,FoodItemsTable[],2,FALSE),"") ->  | O11: =IFERROR(VLOOKUP(L11,FoodItemsTable[],3,FALSE)*ThursdayDinnerTable[[#This Row],[SERV]],"") ->  | P11: =IFERROR(VLOOKUP(L11,FoodItemsTable[],4,FALSE)*ThursdayDinnerTable[[#This Row],[SERV]],"") ->  | S11: =IFERROR(VLOOKUP(Q11,FoodItemsTable[],2,FALSE),"") ->  | T11: =IFERROR(VLOOKUP(Q11,FoodItemsTable[],3,FALSE)*ThursdaySnacksTable[[#This Row],[SERV]],"") ->  | U11: =IFERROR(VLOOKUP(Q11,FoodItemsTable[],4,FALSE)*ThursdaySnacksTable[[#This Row],[SERV]],"") -> 
D12: =IFERROR(VLOOKUP(B12,FoodItemsTable[],2,FALSE),"") ->  | E12: =IFERROR(VLOOKUP(B12,FoodItemsTable[],3,FALSE)*ThursdayBreakfastTable[[#This Row],[SERV]],"") ->  | F12: =IFERROR(VLOOKUP(B12,FoodItemsTable[],4,FALSE)*ThursdayBreakfastTable[[#This Row],[SERV]],"") ->  | I12: =IFERROR(VLOOKUP(G12,FoodItemsTable[],2,FALSE),"") ->  | J12: =IFERROR(VLOOKUP(G12,FoodItemsTable[],3,FALSE)*ThursdayLunchTable[[#This Row],[SERV]],"") ->  | K12: =IFERROR(VLOOKUP(G12,FoodItemsTable[],4,FALSE)*ThursdayLunchTable[[#This Row],[SERV]],"") ->  | N12: =IFERROR(VLOOKUP(L12,FoodItemsTable[],2,FALSE),"") ->  | O12: =IFERROR(VLOOKUP(L12,FoodItemsTable[],3,FALSE)*ThursdayDinnerTable[[#This Row],[SERV]],"") ->  | P12: =IFERROR(VLOOKUP(L12,FoodItemsTable[],4,FALSE)*ThursdayDinnerTable[[#This Row],[SERV]],"") ->  | S12: =IFERROR(VLOOKUP(Q12,FoodItemsTable[],2,FALSE),"") ->  | T12: =IFERROR(VLOOKUP(Q12,FoodItemsTable[],3,FALSE)*ThursdaySnacksTable[[#This Row],[SERV]],"") ->  | U12: =IFERROR(VLOOKUP(Q12,FoodItemsTable[],4,FALSE)*ThursdaySnacksTable[[#This Row],[SERV]],"") -> 
D13: =IFERROR(VLOOKUP(B13,FoodItemsTable[],2,FALSE),"") ->  | E13: =IFERROR(VLOOKUP(B13,FoodItemsTable[],3,FALSE)*ThursdayBreakfastTable[[#This Row],[SERV]],"") ->  | F13: =IFERROR(VLOOKUP(B13,FoodItemsTable[],4,FALSE)*ThursdayBreakfastTable[[#This Row],[SERV]],"") ->  | I13: =IFERROR(VLOOKUP(G13,FoodItemsTable[],2,FALSE),"") ->  | J13: =IFERROR(VLOOKUP(G13,FoodItemsTable[],3,FALSE)*ThursdayLunchTable[[#This Row],[SERV]],"") ->  | K13: =IFERROR(VLOOKUP(G13,FoodItemsTable[],4,FALSE)*ThursdayLunchTable[[#This Row],[SERV]],"") ->  | N13: =IFERROR(VLOOKUP(L13,FoodItemsTable[],2,FALSE),"") ->  | O13: =IFERROR(VLOOKUP(L13,FoodItemsTable[],3,FALSE)*ThursdayDinnerTable[[#This Row],[SERV]],"") ->  | P13: =IFERROR(VLOOKUP(L13,FoodItemsTable[],4,FALSE)*ThursdayDinnerTable[[#This Row],[SERV]],"") ->  | S13: =IFERROR(VLOOKUP(Q13,FoodItemsTable[],2,FALSE),"") ->  | T13: =IFERROR(VLOOKUP(Q13,FoodItemsTable[],3,FALSE)*ThursdaySnacksTable[[#This Row],[SERV]],"") ->  | U13: =IFERROR(VLOOKUP(Q13,FoodItemsTable[],4,FALSE)*ThursdaySnacksTable[[#This Row],[SERV]],"") -> 
D14: =IFERROR(VLOOKUP(B14,FoodItemsTable[],2,FALSE),"") ->  | E14: =IFERROR(VLOOKUP(B14,FoodItemsTable[],3,FALSE)*ThursdayBreakfastTable[[#This Row],[SERV]],"") ->  | F14: =IFERROR(VLOOKUP(B14,FoodItemsTable[],4,FALSE)*ThursdayBreakfastTable[[#This Row],[SERV]],"") ->  | I14: =IFERROR(VLOOKUP(G14,FoodItemsTable[],2,FALSE),"") ->  | J14: =IFERROR(VLOOKUP(G14,FoodItemsTable[],3,FALSE)*ThursdayLunchTable[[#This Row],[SERV]],"") ->  | K14: =IFERROR(VLOOKUP(G14,FoodItemsTable[],4,FALSE)*ThursdayLunchTable[[#This Row],[SERV]],"") ->  | N14: =IFERROR(VLOOKUP(L14,FoodItemsTable[],2,FALSE),"") ->  | O14: =IFERROR(VLOOKUP(L14,FoodItemsTable[],3,FALSE)*ThursdayDinnerTable[[#This Row],[SERV]],"") ->  | P14: =IFERROR(VLOOKUP(L14,FoodItemsTable[],4,FALSE)*ThursdayDinnerTable[[#This Row],[SERV]],"") ->  | S14: =IFERROR(VLOOKUP(Q14,FoodItemsTable[],2,FALSE),"") ->  | T14: =IFERROR(VLOOKUP(Q14,FoodItemsTable[],3,FALSE)*ThursdaySnacksTable[[#This Row],[SERV]],"") ->  | U14: =IFERROR(VLOOKUP(Q14,FoodItemsTable[],4,FALSE)*ThursdaySnacksTable[[#This Row],[SERV]],"") -> 
B15: BREAKFAST TOTAL | E15: =SUBTOTAL(109,ThursdayBreakfastTable[CAL]) -> 0 | F15: =SUBTOTAL(109,ThursdayBreakfastTable[FAT]) -> 0.00 | G15: LUNCH TOTAL | J15: =SUBTOTAL(109,ThursdayLunchTable[CAL]) -> 0 | K15: =SUBTOTAL(109,ThursdayLunchTable[FAT]) -> 0.00 | L15: DINNER TOTAL | O15: =SUBTOTAL(109,ThursdayDinnerTable[CAL]) -> 0 | P15: =SUBTOTAL(109,ThursdayDinnerTable[FAT]) -> 0.00 | Q15: SNACKS TOTAL | T15: =SUBTOTAL(109,ThursdaySnacksTable[CAL]) -> 0 | U15: =SUBTOTAL(109,ThursdaySnacksTable[FAT]) -> 0.00
B16: BREAKFAST TARGET | E16: =BCalories -> 375 | F16: =BFatGrams -> 20.00 | G16: LUNCH TARGET | J16: =LCalories -> 450 | K16: =LFatGrams -> 10.00 | L16: DINNER TARGET | O16: =DCalories -> 475 | P16: =DFatGrams -> 15.00 | Q16: SNACKS TARGET | T16: =SCalories -> 300 | U16: =SFatGrams -> 5.00

Sheet Friday
R2: TOTAL CALORIES | T2: TOTAL FAT GRAMS
B3: FRIDAY MEAL PLAN | R3: =DailyCalories -> 0 | T3: =DailyFatGrams -> 0
B6: MEALS AT A GLANCE
B7: BREAKFAST | G7: LUNCH | L7: DINNER | Q7: SNACKS
B8: ITEM | C8: SERV | D8: AMT | E8: CAL | F8: FAT | G8: FOOD ITEM | H8: SERV | I8: AMT | J8: CAL | K8: FAT | L8: FOOD ITEM | M8: SERV | N8: AMT | O8: CAL | P8: FAT | Q8: FOOD ITEM | R8: SERV | S8: AMT | T8: CAL | U8: FAT
D9: =IFERROR(VLOOKUP(B9,FoodItemsTable[],2,FALSE),"") ->  | E9: =IFERROR(VLOOKUP(B9,FoodItemsTable[],3,FALSE)*FridayBreakfastTable[[#This Row],[SERV]],"") ->  | F9: =IFERROR(VLOOKUP(B9,FoodItemsTable[],4,FALSE)*FridayBreakfastTable[[#This Row],[SERV]],"") ->  | I9: =IFERROR(VLOOKUP(G9,FoodItemsTable[],2,FALSE),"") ->  | J9: =IFERROR(VLOOKUP(G9,FoodItemsTable[],3,FALSE)*FridayLunchTable[[#This Row],[SERV]],"") ->  | K9: =IFERROR(VLOOKUP(G9,FoodItemsTable[],4,FALSE)*FridayLunchTable[[#This Row],[SERV]],"") ->  | N9: =IFERROR(VLOOKUP(L9,FoodItemsTable[],2,FALSE),"") ->  | O9: =IFERROR(VLOOKUP(L9,FoodItemsTable[],3,FALSE)*FridayDinnerTable[[#This Row],[SERV]],"") ->  | P9: =IFERROR(VLOOKUP(L9,FoodItemsTable[],4,FALSE)*FridayDinnerTable[[#This Row],[SERV]],"") ->  | S9: =IFERROR(VLOOKUP(Q9,FoodItemsTable[],2,FALSE),"") ->  | T9: =IFERROR(VLOOKUP(Q9,FoodItemsTable[],3,FALSE)*FridaySnacksTable[[#This Row],[SERV]],"") ->  | U9: =IFERROR(VLOOKUP(Q9,FoodItemsTable[],4,FALSE)*FridaySnacksTable[[#This Row],[SERV]],"") -> 
D10: =IFERROR(VLOOKUP(B10,FoodItemsTable[],2,FALSE),"") ->  | E10: =IFERROR(VLOOKUP(B10,FoodItemsTable[],3,FALSE)*FridayBreakfastTable[[#This Row],[SERV]],"") ->  | F10: =IFERROR(VLOOKUP(B10,FoodItemsTable[],4,FALSE)*FridayBreakfastTable[[#This Row],[SERV]],"") ->  | I10: =IFERROR(VLOOKUP(G10,FoodItemsTable[],2,FALSE),"") ->  | J10: =IFERROR(VLOOKUP(G10,FoodItemsTable[],3,FALSE)*FridayLunchTable[[#This Row],[SERV]],"") ->  | K10: =IFERROR(VLOOKUP(G10,FoodItemsTable[],4,FALSE)*FridayLunchTable[[#This Row],[SERV]],"") ->  | N10: =IFERROR(VLOOKUP(L10,FoodItemsTable[],2,FALSE),"") ->  | O10: =IFERROR(VLOOKUP(L10,FoodItemsTable[],3,FALSE)*FridayDinnerTable[[#This Row],[SERV]],"") ->  | P10: =IFERROR(VLOOKUP(L10,FoodItemsTable[],4,FALSE)*FridayDinnerTable[[#This Row],[SERV]],"") ->  | S10: =IFERROR(VLOOKUP(Q10,FoodItemsTable[],2,FALSE),"") ->  | T10: =IFERROR(VLOOKUP(Q10,FoodItemsTable[],3,FALSE)*FridaySnacksTable[[#This Row],[SERV]],"") ->  | U10: =IFERROR(VLOOKUP(Q10,FoodItemsTable[],4,FALSE)*FridaySnacksTable[[#This Row],[SERV]],"") -> 
D11: =IFERROR(VLOOKUP(B11,FoodItemsTable[],2,FALSE),"") ->  | E11: =IFERROR(VLOOKUP(B11,FoodItemsTable[],3,FALSE)*FridayBreakfastTable[[#This Row],[SERV]],"") ->  | F11: =IFERROR(VLOOKUP(B11,FoodItemsTable[],4,FALSE)*FridayBreakfastTable[[#This Row],[SERV]],"") ->  | I11: =IFERROR(VLOOKUP(G11,FoodItemsTable[],2,FALSE),"") ->  | J11: =IFERROR(VLOOKUP(G11,FoodItemsTable[],3,FALSE)*FridayLunchTable[[#This Row],[SERV]],"") ->  | K11: =IFERROR(VLOOKUP(G11,FoodItemsTable[],4,FALSE)*FridayLunchTable[[#This Row],[SERV]],"") ->  | N11: =IFERROR(VLOOKUP(L11,FoodItemsTable[],2,FALSE),"") ->  | O11: =IFERROR(VLOOKUP(L11,FoodItemsTable[],3,FALSE)*FridayDinnerTable[[#This Row],[SERV]],"") ->  | P11: =IFERROR(VLOOKUP(L11,FoodItemsTable[],4,FALSE)*FridayDinnerTable[[#This Row],[SERV]],"") ->  | S11: =IFERROR(VLOOKUP(Q11,FoodItemsTable[],2,FALSE),"") ->  | T11: =IFERROR(VLOOKUP(Q11,FoodItemsTable[],3,FALSE)*FridaySnacksTable[[#This Row],[SERV]],"") ->  | U11: =IFERROR(VLOOKUP(Q11,FoodItemsTable[],4,FALSE)*FridaySnacksTable[[#This Row],[SERV]],"") -> 
D12: =IFERROR(VLOOKUP(B12,FoodItemsTable[],2,FALSE),"") ->  | E12: =IFERROR(VLOOKUP(B12,FoodItemsTable[],3,FALSE)*FridayBreakfastTable[[#This Row],[SERV]],"") ->  | F12: =IFERROR(VLOOKUP(B12,FoodItemsTable[],4,FALSE)*FridayBreakfastTable[[#This Row],[SERV]],"") ->  | I12: =IFERROR(VLOOKUP(G12,FoodItemsTable[],2,FALSE),"") ->  | J12: =IFERROR(VLOOKUP(G12,FoodItemsTable[],3,FALSE)*FridayLunchTable[[#This Row],[SERV]],"") ->  | K12: =IFERROR(VLOOKUP(G12,FoodItemsTable[],4,FALSE)*FridayLunchTable[[#This Row],[SERV]],"") ->  | N12: =IFERROR(VLOOKUP(L12,FoodItemsTable[],2,FALSE),"") ->  | O12: =IFERROR(VLOOKUP(L12,FoodItemsTable[],3,FALSE)*FridayDinnerTable[[#This Row],[SERV]],"") ->  | P12: =IFERROR(VLOOKUP(L12,FoodItemsTable[],4,FALSE)*FridayDinnerTable[[#This Row],[SERV]],"") ->  | S12: =IFERROR(VLOOKUP(Q12,FoodItemsTable[],2,FALSE),"") ->  | T12: =IFERROR(VLOOKUP(Q12,FoodItemsTable[],3,FALSE)*FridaySnacksTable[[#This Row],[SERV]],"") ->  | U12: =IFERROR(VLOOKUP(Q12,FoodItemsTable[],4,FALSE)*FridaySnacksTable[[#This Row],[SERV]],"") -> 
D13: =IFERROR(VLOOKUP(B13,FoodItemsTable[],2,FALSE),"") ->  | E13: =IFERROR(VLOOKUP(B13,FoodItemsTable[],3,FALSE)*FridayBreakfastTable[[#This Row],[SERV]],"") ->  | F13: =IFERROR(VLOOKUP(B13,FoodItemsTable[],4,FALSE)*FridayBreakfastTable[[#This Row],[SERV]],"") ->  | I13: =IFERROR(VLOOKUP(G13,FoodItemsTable[],2,FALSE),"") ->  | J13: =IFERROR(VLOOKUP(G13,FoodItemsTable[],3,FALSE)*FridayLunchTable[[#This Row],[SERV]],"") ->  | K13: =IFERROR(VLOOKUP(G13,FoodItemsTable[],4,FALSE)*FridayLunchTable[[#This Row],[SERV]],"") ->  | N13: =IFERROR(VLOOKUP(L13,FoodItemsTable[],2,FALSE),"") ->  | O13: =IFERROR(VLOOKUP(L13,FoodItemsTable[],3,FALSE)*FridayDinnerTable[[#This Row],[SERV]],"") ->  | P13: =IFERROR(VLOOKUP(L13,FoodItemsTable[],4,FALSE)*FridayDinnerTable[[#This Row],[SERV]],"") ->  | S13: =IFERROR(VLOOKUP(Q13,FoodItemsTable[],2,FALSE),"") ->  | T13: =IFERROR(VLOOKUP(Q13,FoodItemsTable[],3,FALSE)*FridaySnacksTable[[#This Row],[SERV]],"") ->  | U13: =IFERROR(VLOOKUP(Q13,FoodItemsTable[],4,FALSE)*FridaySnacksTable[[#This Row],[SERV]],"") -> 
D14: =IFERROR(VLOOKUP(B14,FoodItemsTable[],2,FALSE),"") ->  | E14: =IFERROR(VLOOKUP(B14,FoodItemsTable[],3,FALSE)*FridayBreakfastTable[[#This Row],[SERV]],"") ->  | F14: =IFERROR(VLOOKUP(B14,FoodItemsTable[],4,FALSE)*FridayBreakfastTable[[#This Row],[SERV]],"") ->  | I14: =IFERROR(VLOOKUP(G14,FoodItemsTable[],2,FALSE),"") ->  | J14: =IFERROR(VLOOKUP(G14,FoodItemsTable[],3,FALSE)*FridayLunchTable[[#This Row],[SERV]],"") ->  | K14: =IFERROR(VLOOKUP(G14,FoodItemsTable[],4,FALSE)*FridayLunchTable[[#This Row],[SERV]],"") ->  | N14: =IFERROR(VLOOKUP(L14,FoodItemsTable[],2,FALSE),"") ->  | O14: =IFERROR(VLOOKUP(L14,FoodItemsTable[],3,FALSE)*FridayDinnerTable[[#This Row],[SERV]],"") ->  | P14: =IFERROR(VLOOKUP(L14,FoodItemsTable[],4,FALSE)*FridayDinnerTable[[#This Row],[SERV]],"") ->  | S14: =IFERROR(VLOOKUP(Q14,FoodItemsTable[],2,FALSE),"") ->  | T14: =IFERROR(VLOOKUP(Q14,FoodItemsTable[],3,FALSE)*FridaySnacksTable[[#This Row],[SERV]],"") ->  | U14: =IFERROR(VLOOKUP(Q14,FoodItemsTable[],4,FALSE)*FridaySnacksTable[[#This Row],[SERV]],"") -> 
B15: BREAKFAST TOTAL | E15: =SUBTOTAL(109,FridayBreakfastTable[CAL]) -> 0 | F15: =SUBTOTAL(109,FridayBreakfastTable[FAT]) -> 0.00 | G15: LUNCH TOTAL | J15: =SUBTOTAL(109,FridayLunchTable[CAL]) -> 0 | K15: =SUBTOTAL(109,FridayLunchTable[FAT]) -> 0.00 | L15: DINNER TOTAL | O15: =SUBTOTAL(109,FridayDinnerTable[CAL]) -> 0 | P15: =SUBTOTAL(109,FridayDinnerTable[FAT]) -> 0.00 | Q15: SNACKS TOTAL | T15: =SUBTOTAL(109,FridaySnacksTable[CAL]) -> 0 | U15: =SUBTOTAL(109,FridaySnacksTable[FAT]) -> 0.00
B16: BREAKFAST TARGET | E16: =BCalories -> 375 | F16: =BFatGrams -> 20.00 | G16: LUNCH TARGET | J16: =LCalories -> 450 | K16: =LFatGrams -> 10.00 | L16: DINNER TARGET | O16: =DCalories -> 475 | P16: =DFatGrams -> 15.00 | Q16: SNACKS TARGET | T16: =SCalories -> 300 | U16: =SFatGrams -> 5.00

Sheet Saturday
R2: TOTAL CALORIES | T2: TOTAL FAT GRAMS
B3: SATURDAY MEAL PLAN | R3: =DailyCalories -> 0 | T3: =DailyFatGrams -> 0
B6: MEALS AT A GLANCE
B7: BREAKFAST | G7: LUNCH | L7: DINNER | Q7: SNACKS
B8: ITEM | C8: SERV | D8: AMT | E8: CAL | F8: FAT | G8: FOOD ITEM | H8: SERV | I8: AMT | J8: CAL | K8: FAT | L8: FOOD ITEM | M8: SERV | N8: AMT | O8: CAL | P8: FAT | Q8: FOOD ITEM | R8: SERV | S8: AMT | T8: CAL | U8: FAT
D9: =IFERROR(VLOOKUP(B9,FoodItemsTable[],2,FALSE),"") ->  | E9: =IFERROR(VLOOKUP(B9,FoodItemsTable[],3,FALSE)*SaturdayBreakfastTable[[#This Row],[SERV]],"") ->  | F9: =IFERROR(VLOOKUP(B9,FoodItemsTable[],4,FALSE)*SaturdayBreakfastTable[[#This Row],[SERV]],"") ->  | I9: =IFERROR(VLOOKUP(G9,FoodItemsTable[],2,FALSE),"") ->  | J9: =IFERROR(VLOOKUP(G9,FoodItemsTable[],3,FALSE)*SaturdayLunchTable[[#This Row],[SERV]],"") ->  | K9: =IFERROR(VLOOKUP(G9,FoodItemsTable[],4,FALSE)*SaturdayLunchTable[[#This Row],[SERV]],"") ->  | N9: =IFERROR(VLOOKUP(L9,FoodItemsTable[],2,FALSE),"") ->  | O9: =IFERROR(VLOOKUP(L9,FoodItemsTable[],3,FALSE)*SaturdayDinnerTable[[#This Row],[SERV]],"") ->  | P9: =IFERROR(VLOOKUP(L9,FoodItemsTable[],4,FALSE)*SaturdayDinnerTable[[#This Row],[SERV]],"") ->  | S9: =IFERROR(VLOOKUP(Q9,FoodItemsTable[],2,FALSE),"") ->  | T9: =IFERROR(VLOOKUP(Q9,FoodItemsTable[],3,FALSE)*SaturdaySnacksTable[[#This Row],[SERV]],"") ->  | U9: =IFERROR(VLOOKUP(Q9,FoodItemsTable[],4,FALSE)*SaturdaySnacksTable[[#This Row],[SERV]],"") -> 
D10: =IFERROR(VLOOKUP(B10,FoodItemsTable[],2,FALSE),"") ->  | E10: =IFERROR(VLOOKUP(B10,FoodItemsTable[],3,FALSE)*SaturdayBreakfastTable[[#This Row],[SERV]],"") ->  | F10: =IFERROR(VLOOKUP(B10,FoodItemsTable[],4,FALSE)*SaturdayBreakfastTable[[#This Row],[SERV]],"") ->  | I10: =IFERROR(VLOOKUP(G10,FoodItemsTable[],2,FALSE),"") ->  | J10: =IFERROR(VLOOKUP(G10,FoodItemsTable[],3,FALSE)*SaturdayLunchTable[[#This Row],[SERV]],"") ->  | K10: =IFERROR(VLOOKUP(G10,FoodItemsTable[],4,FALSE)*SaturdayLunchTable[[#This Row],[SERV]],"") ->  | N10: =IFERROR(VLOOKUP(L10,FoodItemsTable[],2,FALSE),"") ->  | O10: =IFERROR(VLOOKUP(L10,FoodItemsTable[],3,FALSE)*SaturdayDinnerTable[[#This Row],[SERV]],"") ->  | P10: =IFERROR(VLOOKUP(L10,FoodItemsTable[],4,FALSE)*SaturdayDinnerTable[[#This Row],[SERV]],"") ->  | S10: =IFERROR(VLOOKUP(Q10,FoodItemsTable[],2,FALSE),"") ->  | T10: =IFERROR(VLOOKUP(Q10,FoodItemsTable[],3,FALSE)*SaturdaySnacksTable[[#This Row],[SERV]],"") ->  | U10: =IFERROR(VLOOKUP(Q10,FoodItemsTable[],4,FALSE)*SaturdaySnacksTable[[#This Row],[SERV]],"") -> 
D11: =IFERROR(VLOOKUP(B11,FoodItemsTable[],2,FALSE),"") ->  | E11: =IFERROR(VLOOKUP(B11,FoodItemsTable[],3,FALSE)*SaturdayBreakfastTable[[#This Row],[SERV]],"") ->  | F11: =IFERROR(VLOOKUP(B11,FoodItemsTable[],4,FALSE)*SaturdayBreakfastTable[[#This Row],[SERV]],"") ->  | I11: =IFERROR(VLOOKUP(G11,FoodItemsTable[],2,FALSE),"") ->  | J11: =IFERROR(VLOOKUP(G11,FoodItemsTable[],3,FALSE)*SaturdayLunchTable[[#This Row],[SERV]],"") ->  | K11: =IFERROR(VLOOKUP(G11,FoodItemsTable[],4,FALSE)*SaturdayLunchTable[[#This Row],[SERV]],"") ->  | N11: =IFERROR(VLOOKUP(L11,FoodItemsTable[],2,FALSE),"") ->  | O11: =IFERROR(VLOOKUP(L11,FoodItemsTable[],3,FALSE)*SaturdayDinnerTable[[#This Row],[SERV]],"") ->  | P11: =IFERROR(VLOOKUP(L11,FoodItemsTable[],4,FALSE)*SaturdayDinnerTable[[#This Row],[SERV]],"") ->  | S11: =IFERROR(VLOOKUP(Q11,FoodItemsTable[],2,FALSE),"") ->  | T11: =IFERROR(VLOOKUP(Q11,FoodItemsTable[],3,FALSE)*SaturdaySnacksTable[[#This Row],[SERV]],"") ->  | U11: =IFERROR(VLOOKUP(Q11,FoodItemsTable[],4,FALSE)*SaturdaySnacksTable[[#This Row],[SERV]],"") -> 
D12: =IFERROR(VLOOKUP(B12,FoodItemsTable[],2,FALSE),"") ->  | E12: =IFERROR(VLOOKUP(B12,FoodItemsTable[],3,FALSE)*SaturdayBreakfastTable[[#This Row],[SERV]],"") ->  | F12: =IFERROR(VLOOKUP(B12,FoodItemsTable[],4,FALSE)*SaturdayBreakfastTable[[#This Row],[SERV]],"") ->  | I12: =IFERROR(VLOOKUP(G12,FoodItemsTable[],2,FALSE),"") ->  | J12: =IFERROR(VLOOKUP(G12,FoodItemsTable[],3,FALSE)*SaturdayLunchTable[[#This Row],[SERV]],"") ->  | K12: =IFERROR(VLOOKUP(G12,FoodItemsTable[],4,FALSE)*SaturdayLunchTable[[#This Row],[SERV]],"") ->  | N12: =IFERROR(VLOOKUP(L12,FoodItemsTable[],2,FALSE),"") ->  | O12: =IFERROR(VLOOKUP(L12,FoodItemsTable[],3,FALSE)*SaturdayDinnerTable[[#This Row],[SERV]],"") ->  | P12: =IFERROR(VLOOKUP(L12,FoodItemsTable[],4,FALSE)*SaturdayDinnerTable[[#This Row],[SERV]],"") ->  | S12: =IFERROR(VLOOKUP(Q12,FoodItemsTable[],2,FALSE),"") ->  | T12: =IFERROR(VLOOKUP(Q12,FoodItemsTable[],3,FALSE)*SaturdaySnacksTable[[#This Row],[SERV]],"") ->  | U12: =IFERROR(VLOOKUP(Q12,FoodItemsTable[],4,FALSE)*SaturdaySnacksTable[[#This Row],[SERV]],"") -> 
D13: =IFERROR(VLOOKUP(B13,FoodItemsTable[],2,FALSE),"") ->  | E13: =IFERROR(VLOOKUP(B13,FoodItemsTable[],3,FALSE)*SaturdayBreakfastTable[[#This Row],[SERV]],"") ->  | F13: =IFERROR(VLOOKUP(B13,FoodItemsTable[],4,FALSE)*SaturdayBreakfastTable[[#This Row],[SERV]],"") ->  | I13: =IFERROR(VLOOKUP(G13,FoodItemsTable[],2,FALSE),"") ->  | J13: =IFERROR(VLOOKUP(G13,FoodItemsTable[],3,FALSE)*SaturdayLunchTable[[#This Row],[SERV]],"") ->  | K13: =IFERROR(VLOOKUP(G13,FoodItemsTable[],4,FALSE)*SaturdayLunchTable[[#This Row],[SERV]],"") ->  | N13: =IFERROR(VLOOKUP(L13,FoodItemsTable[],2,FALSE),"") ->  | O13: =IFERROR(VLOOKUP(L13,FoodItemsTable[],3,FALSE)*SaturdayDinnerTable[[#This Row],[SERV]],"") ->  | P13: =IFERROR(VLOOKUP(L13,FoodItemsTable[],4,FALSE)*SaturdayDinnerTable[[#This Row],[SERV]],"") ->  | S13: =IFERROR(VLOOKUP(Q13,FoodItemsTable[],2,FALSE),"") ->  | T13: =IFERROR(VLOOKUP(Q13,FoodItemsTable[],3,FALSE)*SaturdaySnacksTable[[#This Row],[SERV]],"") ->  | U13: =IFERROR(VLOOKUP(Q13,FoodItemsTable[],4,FALSE)*SaturdaySnacksTable[[#This Row],[SERV]],"") -> 
D14: =IFERROR(VLOOKUP(B14,FoodItemsTable[],2,FALSE),"") ->  | E14: =IFERROR(VLOOKUP(B14,FoodItemsTable[],3,FALSE)*SaturdayBreakfastTable[[#This Row],[SERV]],"") ->  | F14: =IFERROR(VLOOKUP(B14,FoodItemsTable[],4,FALSE)*SaturdayBreakfastTable[[#This Row],[SERV]],"") ->  | I14: =IFERROR(VLOOKUP(G14,FoodItemsTable[],2,FALSE),"") ->  | J14: =IFERROR(VLOOKUP(G14,FoodItemsTable[],3,FALSE)*SaturdayLunchTable[[#This Row],[SERV]],"") ->  | K14: =IFERROR(VLOOKUP(G14,FoodItemsTable[],4,FALSE)*SaturdayLunchTable[[#This Row],[SERV]],"") ->  | N14: =IFERROR(VLOOKUP(L14,FoodItemsTable[],2,FALSE),"") ->  | O14: =IFERROR(VLOOKUP(L14,FoodItemsTable[],3,FALSE)*SaturdayDinnerTable[[#This Row],[SERV]],"") ->  | P14: =IFERROR(VLOOKUP(L14,FoodItemsTable[],4,FALSE)*SaturdayDinnerTable[[#This Row],[SERV]],"") ->  | S14: =IFERROR(VLOOKUP(Q14,FoodItemsTable[],2,FALSE),"") ->  | T14: =IFERROR(VLOOKUP(Q14,FoodItemsTable[],3,FALSE)*SaturdaySnacksTable[[#This Row],[SERV]],"") ->  | U14: =IFERROR(VLOOKUP(Q14,FoodItemsTable[],4,FALSE)*SaturdaySnacksTable[[#This Row],[SERV]],"") -> 
B15: BREAKFAST TOTAL | E15: =SUBTOTAL(109,SaturdayBreakfastTable[CAL]) -> 0 | F15: =SUBTOTAL(109,SaturdayBreakfastTable[FAT]) -> 0.00 | G15: LUNCH TOTAL | J15: =SUBTOTAL(109,SaturdayLunchTable[CAL]) -> 0 | K15: =SUBTOTAL(109,SaturdayLunchTable[FAT]) -> 0.00 | L15: DINNER TOTAL | O15: =SUBTOTAL(109,SaturdayDinnerTable[CAL]) -> 0 | P15: =SUBTOTAL(109,SaturdayDinnerTable[FAT]) -> 0.00 | Q15: SNACKS TOTAL | T15: =SUBTOTAL(109,SaturdaySnacksTable[CAL]) -> 0 | U15: =SUBTOTAL(109,SaturdaySnacksTable[FAT]) -> 0.00
B16: BREAKFAST TARGET | E16: =BCalories -> 375 | F16: =BFatGrams -> 20.00 | G16: LUNCH TARGET | J16: =LCalories -> 450 | K16: =LFatGrams -> 10.00 | L16: DINNER TARGET | O16: =DCalories -> 475 | P16: =DFatGrams -> 15.00 | Q16: SNACKS TARGET | T16: =SCalories -> 300 | U16: =SFatGrams -> 5.00

Sheet Sunday
R2: TOTAL CALORIES | T2: TOTAL FAT GRAMS
B3: SUNDAY MEAL PLAN | R3: =DailyCalories -> 0 | T3: =DailyFatGrams -> 0
B6: MEALS AT A GLANCE
B7: BREAKFAST | G7: LUNCH | L7: DINNER | Q7: SNACKS
B8: ITEM | C8: SERV | D8: AMT | E8: CAL | F8: FAT | G8: FOOD ITEM | H8: SERV | I8: AMT | J8: CAL | K8: FAT | L8: FOOD ITEM | M8: SERV | N8: AMT | O8: CAL | P8: FAT | Q8: FOOD ITEM | R8: SERV | S8: AMT | T8: CAL | U8: FAT
D9: =IFERROR(VLOOKUP(B9,FoodItemsTable[],2,FALSE),"") ->  | E9: =IFERROR(VLOOKUP(B9,FoodItemsTable[],3,FALSE)*SundayBreakfastTable[[#This Row],[SERV]],"") ->  | F9: =IFERROR(VLOOKUP(B9,FoodItemsTable[],4,FALSE)*SundayBreakfastTable[[#This Row],[SERV]],"") ->  | I9: =IFERROR(VLOOKUP(G9,FoodItemsTable[],2,FALSE),"") ->  | J9: =IFERROR(VLOOKUP(G9,FoodItemsTable[],3,FALSE)*SundayLunchTable[[#This Row],[SERV]],"") ->  | K9: =IFERROR(VLOOKUP(G9,FoodItemsTable[],4,FALSE)*SundayLunchTable[[#This Row],[SERV]],"") ->  | N9: =IFERROR(VLOOKUP(L9,FoodItemsTable[],2,FALSE),"") ->  | O9: =IFERROR(VLOOKUP(L9,FoodItemsTable[],3,FALSE)*SundayDinnerTable[[#This Row],[SERV]],"") ->  | P9: =IFERROR(VLOOKUP(L9,FoodItemsTable[],4,FALSE)*SundayDinnerTable[[#This Row],[SERV]],"") ->  | S9: =IFERROR(VLOOKUP(Q9,FoodItemsTable[],2,FALSE),"") ->  | T9: =IFERROR(VLOOKUP(Q9,FoodItemsTable[],3,FALSE)*SundaySnacksTable[[#This Row],[SERV]],"") ->  | U9: =IFERROR(VLOOKUP(Q9,FoodItemsTable[],4,FALSE)*SundaySnacksTable[[#This Row],[SERV]],"") -> 
D10: =IFERROR(VLOOKUP(B10,FoodItemsTable[],2,FALSE),"") ->  | E10: =IFERROR(VLOOKUP(B10,FoodItemsTable[],3,FALSE)*SundayBreakfastTable[[#This Row],[SERV]],"") ->  | F10: =IFERROR(VLOOKUP(B10,FoodItemsTable[],4,FALSE)*SundayBreakfastTable[[#This Row],[SERV]],"") ->  | I10: =IFERROR(VLOOKUP(G10,FoodItemsTable[],2,FALSE),"") ->  | J10: =IFERROR(VLOOKUP(G10,FoodItemsTable[],3,FALSE)*SundayLunchTable[[#This Row],[SERV]],"") ->  | K10: =IFERROR(VLOOKUP(G10,FoodItemsTable[],4,FALSE)*SundayLunchTable[[#This Row],[SERV]],"") ->  | N10: =IFERROR(VLOOKUP(L10,FoodItemsTable[],2,FALSE),"") ->  | O10: =IFERROR(VLOOKUP(L10,FoodItemsTable[],3,FALSE)*SundayDinnerTable[[#This Row],[SERV]],"") ->  | P10: =IFERROR(VLOOKUP(L10,FoodItemsTable[],4,FALSE)*SundayDinnerTable[[#This Row],[SERV]],"") ->  | S10: =IFERROR(VLOOKUP(Q10,FoodItemsTable[],2,FALSE),"") ->  | T10: =IFERROR(VLOOKUP(Q10,FoodItemsTable[],3,FALSE)*SundaySnacksTable[[#This Row],[SERV]],"") ->  | U10: =IFERROR(VLOOKUP(Q10,FoodItemsTable[],4,FALSE)*SundaySnacksTable[[#This Row],[SERV]],"") -> 
D11: =IFERROR(VLOOKUP(B11,FoodItemsTable[],2,FALSE),"") ->  | E11: =IFERROR(VLOOKUP(B11,FoodItemsTable[],3,FALSE)*SundayBreakfastTable[[#This Row],[SERV]],"") ->  | F11: =IFERROR(VLOOKUP(B11,FoodItemsTable[],4,FALSE)*SundayBreakfastTable[[#This Row],[SERV]],"") ->  | I11: =IFERROR(VLOOKUP(G11,FoodItemsTable[],2,FALSE),"") ->  | J11: =IFERROR(VLOOKUP(G11,FoodItemsTable[],3,FALSE)*SundayLunchTable[[#This Row],[SERV]],"") ->  | K11: =IFERROR(VLOOKUP(G11,FoodItemsTable[],4,FALSE)*SundayLunchTable[[#This Row],[SERV]],"") ->  | N11: =IFERROR(VLOOKUP(L11,FoodItemsTable[],2,FALSE),"") ->  | O11: =IFERROR(VLOOKUP(L11,FoodItemsTable[],3,FALSE)*SundayDinnerTable[[#This Row],[SERV]],"") ->  | P11: =IFERROR(VLOOKUP(L11,FoodItemsTable[],4,FALSE)*SundayDinnerTable[[#This Row],[SERV]],"") ->  | S11: =IFERROR(VLOOKUP(Q11,FoodItemsTable[],2,FALSE),"") ->  | T11: =IFERROR(VLOOKUP(Q11,FoodItemsTable[],3,FALSE)*SundaySnacksTable[[#This Row],[SERV]],"") ->  | U11: =IFERROR(VLOOKUP(Q11,FoodItemsTable[],4,FALSE)*SundaySnacksTable[[#This Row],[SERV]],"") -> 
D12: =IFERROR(VLOOKUP(B12,FoodItemsTable[],2,FALSE),"") ->  | E12: =IFERROR(VLOOKUP(B12,FoodItemsTable[],3,FALSE)*SundayBreakfastTable[[#This Row],[SERV]],"") ->  | F12: =IFERROR(VLOOKUP(B12,FoodItemsTable[],4,FALSE)*SundayBreakfastTable[[#This Row],[SERV]],"") ->  | I12: =IFERROR(VLOOKUP(G12,FoodItemsTable[],2,FALSE),"") ->  | J12: =IFERROR(VLOOKUP(G12,FoodItemsTable[],3,FALSE)*SundayLunchTable[[#This Row],[SERV]],"") ->  | K12: =IFERROR(VLOOKUP(G12,FoodItemsTable[],4,FALSE)*SundayLunchTable[[#This Row],[SERV]],"") ->  | N12: =IFERROR(VLOOKUP(L12,FoodItemsTable[],2,FALSE),"") ->  | O12: =IFERROR(VLOOKUP(L12,FoodItemsTable[],3,FALSE)*SundayDinnerTable[[#This Row],[SERV]],"") ->  | P12: =IFERROR(VLOOKUP(L12,FoodItemsTable[],4,FALSE)*SundayDinnerTable[[#This Row],[SERV]],"") ->  | S12: =IFERROR(VLOOKUP(Q12,FoodItemsTable[],2,FALSE),"") ->  | T12: =IFERROR(VLOOKUP(Q12,FoodItemsTable[],3,FALSE)*SundaySnacksTable[[#This Row],[SERV]],"") ->  | U12: =IFERROR(VLOOKUP(Q12,FoodItemsTable[],4,FALSE)*SundaySnacksTable[[#This Row],[SERV]],"") -> 
D13: =IFERROR(VLOOKUP(B13,FoodItemsTable[],2,FALSE),"") ->  | E13: =IFERROR(VLOOKUP(B13,FoodItemsTable[],3,FALSE)*SundayBreakfastTable[[#This Row],[SERV]],"") ->  | F13: =IFERROR(VLOOKUP(B13,FoodItemsTable[],4,FALSE)*SundayBreakfastTable[[#This Row],[SERV]],"") ->  | I13: =IFERROR(VLOOKUP(G13,FoodItemsTable[],2,FALSE),"") ->  | J13: =IFERROR(VLOOKUP(G13,FoodItemsTable[],3,FALSE)*SundayLunchTable[[#This Row],[SERV]],"") ->  | K13: =IFERROR(VLOOKUP(G13,FoodItemsTable[],4,FALSE)*SundayLunchTable[[#This Row],[SERV]],"") ->  | N13: =IFERROR(VLOOKUP(L13,FoodItemsTable[],2,FALSE),"") ->  | O13: =IFERROR(VLOOKUP(L13,FoodItemsTable[],3,FALSE)*SundayDinnerTable[[#This Row],[SERV]],"") ->  | P13: =IFERROR(VLOOKUP(L13,FoodItemsTable[],4,FALSE)*SundayDinnerTable[[#This Row],[SERV]],"") ->  | S13: =IFERROR(VLOOKUP(Q13,FoodItemsTable[],2,FALSE),"") ->  | T13: =IFERROR(VLOOKUP(Q13,FoodItemsTable[],3,FALSE)*SundaySnacksTable[[#This Row],[SERV]],"") ->  | U13: =IFERROR(VLOOKUP(Q13,FoodItemsTable[],4,FALSE)*SundaySnacksTable[[#This Row],[SERV]],"") -> 
D14: =IFERROR(VLOOKUP(B14,FoodItemsTable[],2,FALSE),"") ->  | E14: =IFERROR(VLOOKUP(B14,FoodItemsTable[],3,FALSE)*SundayBreakfastTable[[#This Row],[SERV]],"") ->  | F14: =IFERROR(VLOOKUP(B14,FoodItemsTable[],4,FALSE)*SundayBreakfastTable[[#This Row],[SERV]],"") ->  | I14: =IFERROR(VLOOKUP(G14,FoodItemsTable[],2,FALSE),"") ->  | J14: =IFERROR(VLOOKUP(G14,FoodItemsTable[],3,FALSE)*SundayLunchTable[[#This Row],[SERV]],"") ->  | K14: =IFERROR(VLOOKUP(G14,FoodItemsTable[],4,FALSE)*SundayLunchTable[[#This Row],[SERV]],"") ->  | N14: =IFERROR(VLOOKUP(L14,FoodItemsTable[],2,FALSE),"") ->  | O14: =IFERROR(VLOOKUP(L14,FoodItemsTable[],3,FALSE)*SundayDinnerTable[[#This Row],[SERV]],"") ->  | P14: =IFERROR(VLOOKUP(L14,FoodItemsTable[],4,FALSE)*SundayDinnerTable[[#This Row],[SERV]],"") ->  | S14: =IFERROR(VLOOKUP(Q14,FoodItemsTable[],2,FALSE),"") ->  | T14: =IFERROR(VLOOKUP(Q14,FoodItemsTable[],3,FALSE)*SundaySnacksTable[[#This Row],[SERV]],"") ->  | U14: =IFERROR(VLOOKUP(Q14,FoodItemsTable[],4,FALSE)*SundaySnacksTable[[#This Row],[SERV]],"") -> 
B15: BREAKFAST TOTAL | E15: =SUBTOTAL(109,SundayBreakfastTable[CAL]) -> 0 | F15: =SUBTOTAL(109,SundayBreakfastTable[FAT]) -> 0.00 | G15: LUNCH TOTAL | J15: =SUBTOTAL(109,SundayLunchTable[CAL]) -> 0 | K15: =SUBTOTAL(109,SundayLunchTable[FAT]) -> 0.00 | L15: DINNER TOTAL | O15: =SUBTOTAL(109,SundayDinnerTable[CAL]) -> 0 | P15: =SUBTOTAL(109,SundayDinnerTable[FAT]) -> 0.00 | Q15: SNACKS TOTAL | T15: =SUBTOTAL(109,SundaySnacksTable[CAL]) -> 0 | U15: =SUBTOTAL(109,SundaySnacksTable[FAT]) -> 0.00
B16: BREAKFAST TARGET | E16: =BCalories -> 375 | F16: =BFatGrams -> 20.00 | G16: LUNCH TARGET | J16: =LCalories -> 450 | K16: =LFatGrams -> 10.00 | L16: DINNER TARGET | O16: =DCalories -> 475 | P16: =DFatGrams -> 15.00 | Q16: SNACKS TARGET | T16: =SCalories -> 300 | U16: =SFatGrams -> 5.00

Sheet Weekly View
L2: TOTAL CALORIES | M2: TOTAL FAT GRAMS
B3: WEEKLY REVIEW | L3: =MondayCalories+TuesdayCalories+WednesdayCalories+ThursdayCalories+FridayCalories+SaturdayCalories+SundayCalories -> 2880.5 | M3: =MondayFatGrams+TuesdayFatGrams+WednesdayFatGrams+ThursdayFatGrams+FridayFatGrams+SaturdayFatGrams+SundayFatGrams -> 83.85
B6: DAILY TOTALS & AVERAGES
B7: BREAKFAST | E7: LUNCH | H7: DINNER | K7: SNACKS
B8: DAY | C8: CAL | D8: FAT | E8: DAY | F8: CAL | G8: FAT | H8: DAY | I8: CAL | J8: FAT | K8: FOOD ITEM | L8: CAL | M8: FAT
B9: Monday | C9: =MondayBreakfastTable[[#Totals],[CAL]] -> 427.00 | D9: =MondayBreakfastTable[[#Totals],[FAT]] -> 23.95 | E9: Monday | F9: =MondayLunchTable[[#Totals],[CAL]] -> 204.00 | G9: =MondayLunchTable[[#Totals],[FAT]] -> 1.30 | H9: Monday | I9: =MondayDinnerTable[[#Totals],[CAL]] -> 452.00 | J9: =MondayDinnerTable[[#Totals],[FAT]] -> 14.40 | K9: Monday | L9: =MondaySnacksTable[[#Totals],[CAL]] -> 153.00 | M9: =MondaySnacksTable[[#Totals],[FAT]] -> 0.50
B10: Tuesday | C10: =TuesdayBreakfastTable[[#Totals],[CAL]] -> 664.00 | D10: =TuesdayBreakfastTable[[#Totals],[FAT]] -> 30.50 | E10: Tuesday | F10: =TuesdayLunchTable[[#Totals],[CAL]] -> 165.50 | G10: =TuesdayLunchTable[[#Totals],[FAT]] -> 0.70 | H10: Tuesday | I10: =TuesdayDinnerTable[[#Totals],[CAL]] -> 611.00 | J10: =TuesdayDinnerTable[[#Totals],[FAT]] -> 11.20 | K10: Tuesday | L10: =TuesdaySnacksTable[[#Totals],[CAL]] -> 204.00 | M10: =TuesdaySnacksTable[[#Totals],[FAT]] -> 1.30
B11: Wednesday | C11: =WednesdayBreakfastTable[[#Totals],[CAL]] -> 0.00 | D11: =WednesdayBreakfastTable[[#Totals],[FAT]] -> 0.00 | E11: Wednesday | F11: =WednesdayLunchTable[[#Totals],[CAL]] -> 0.00 | G11: =WednesdayLunchTable[[#Totals],[FAT]] -> 0.00 | H11: Wednesday | I11: =WednesdayDinnerTable[[#Totals],[CAL]] -> 0.00 | J11: =WednesdayDinnerTable[[#Totals],[FAT]] -> 0.00 | K11: Wednesday | L11: =WednesdaySnacksTable[[#Totals],[CAL]] -> 0.00 | M11: =WednesdaySnacksTable[[#Totals],[FAT]] -> 0.00
B12: Thursday | C12: =ThursdayBreakfastTable[[#Totals],[CAL]] -> 0.00 | D12: =ThursdayBreakfastTable[[#Totals],[FAT]] -> 0.00 | E12: Thursday | F12: =ThursdayLunchTable[[#Totals],[CAL]] -> 0.00 | G12: =ThursdayLunchTable[[#Totals],[FAT]] -> 0.00 | H12: Thursday | I12: =ThursdayDinnerTable[[#Totals],[CAL]] -> 0.00 | J12: =ThursdayDinnerTable[[#Totals],[FAT]] -> 0.00 | K12: Thursday | L12: =ThursdaySnacksTable[[#Totals],[CAL]] -> 0.00 | M12: =ThursdaySnacksTable[[#Totals],[FAT]] -> 0.00
B13: Friday | C13: =FridayBreakfastTable[[#Totals],[CAL]] -> 0.00 | D13: =FridayBreakfastTable[[#Totals],[FAT]] -> 0.00 | E13: Friday | F13: =FridayLunchTable[[#Totals],[CAL]] -> 0.00 | G13: =FridayLunchTable[[#Totals],[FAT]] -> 0.00 | H13: Friday | I13: =FridayDinnerTable[[#Totals],[CAL]] -> 0.00 | J13: =FridayDinnerTable[[#Totals],[FAT]] -> 0.00 | K13: Friday | L13: =FridaySnacksTable[[#Totals],[CAL]] -> 0.00 | M13: =FridaySnacksTable[[#Totals],[FAT]] -> 0.00
B14: Saturday | C14: =SaturdayBreakfastTable[[#Totals],[CAL]] -> 0.00 | D14: =SaturdayBreakfastTable[[#Totals],[FAT]] -> 0.00 | E14: Saturday | F14: =SaturdayLunchTable[[#Totals],[CAL]] -> 0.00 | G14: =SaturdayLunchTable[[#Totals],[FAT]] -> 0.00 | H14: Saturday | I14: =SaturdayDinnerTable[[#Totals],[CAL]] -> 0.00 | J14: =SaturdayDinnerTable[[#Totals],[FAT]] -> 0.00 | K14: Saturday | L14: =SaturdaySnacksTable[[#Totals],[CAL]] -> 0.00 | M14: =SaturdaySnacksTable[[#Totals],[FAT]] -> 0.00
B15: Sunday | C15: =SundayBreakfastTable[[#Totals],[CAL]] -> 0.00 | D15: =SundayBreakfastTable[[#Totals],[FAT]] -> 0.00 | E15: Sunday | F15: =SundayLunchTable[[#Totals],[CAL]] -> 0.00 | G15: =SundayLunchTable[[#Totals],[FAT]] -> 0.00 | H15: Sunday | I15: =SundayDinnerTable[[#Totals],[CAL]] -> 0.00 | J15: =SundayDinnerTable[[#Totals],[FAT]] -> 0.00 | K15: Sunday | L15: =SundaySnacksTable[[#Totals],[CAL]] -> 0.00 | M15: =SundaySnacksTable[[#Totals],[FAT]] -> 0.00
B16: BREAKFAST TOTAL | C16: =SUBTOTAL(109,WeeklyBreakfastTable[CAL]) -> 1091.00 | D16: =SUBTOTAL(109,WeeklyBreakfastTable[FAT]) -> 54.45 | E16: LUNCH TOTAL | F16: =SUBTOTAL(109,WeeklyLunchTable[CAL]) -> 369.50 | G16: =SUBTOTAL(109,WeeklyLunchTable[FAT]) -> 2.00 | H16: DINNER TOTAL | I16: =SUBTOTAL(109,WeeklyDinnerTable[CAL]) -> 1063.00 | J16: =SUBTOTAL(109,WeeklyDinnerTable[FAT]) -> 25.60 | K16: SNACKS TOTAL | L16: =SUBTOTAL(109,WeeklySnacksTable[CAL]) -> 357.00 | M16: =SUBTOTAL(109,WeeklySnacksTable[FAT]) -> 1.80
B17: BREAKFAST TARGET | C17: =BCalories -> 375.00 | D17: =BFatGrams -> 20.00 | E17: LUNCH TARGET | F17: =LCalories -> 450.00 | G17: =LFatGrams -> 10.00 | H17: DINNER TARGET | I17: =DCalories -> 475.00 | J17: =DFatGrams -> 15.00 | K17: SNACKS TARGET | L17: =SCalories -> 300.00 | M17: =SFatGrams -> 5.00
B18: BREAKFAST AVERAGE | C18: =AVERAGE(WeeklyBreakfastTable[CAL]) -> 155.86 | D18: =AVERAGE(WeeklyBreakfastTable[FAT]) -> 7.78 | E18: LUNCH AVERAGE | F18: =AVERAGE(WeeklyLunchTable[CAL]) -> 52.79 | G18: =AVERAGE(WeeklyLunchTable[FAT]) -> 0.29 | H18: DINNER AVERAGE | I18: =AVERAGE(WeeklyDinnerTable[CAL]) -> 151.86 | J18: =AVERAGE(WeeklyDinnerTable[FAT]) -> 3.66 | K18: SNACKS AVERAGE | L18: =AVERAGE(WeeklySnacksTable[CAL]) -> 51.00 | M18: =AVERAGE(WeeklySnacksTable[FAT]) -> 0.26
